Workbook

Sheet b-Faktor
B1: Berechnung der Reduktionsfaktoren gegen Erdreich
X2: nach Norm SN EN ISO 13370
B3: Objekt :
B5: Bauteil-Nr.:
AM7: Typ A: Ohne Nebengebäude | AN7: =K27*K28 -> 1500 | AO7: =2*(K27+K28) -> 170 | AP7: 1
K8: Gebäudetyp = | Q8: Typ A: Ohne Nebengebäude | AM8: Typ B: Mit beheiztem Nebengebäude | AN8: =K27*K28 -> 1500 | AO8: =K27+2*K28 -> 110 | AP8: 2
AM9: Typ C: Mit unbeheiztem Nebengebäude | AN9: =K27 -> 60 | AO9: =K28 -> 25 | AP9: 3
AP10: =VLOOKUP(Q8,AM7:AP9,4,FALSE) -> 1
M11: OK Erdreich
W13: Wanddicke w = | X13: 0.40 | Y13: [m]
W14: U-Wert Wand Uw = | X14: 0.20 | Y14: [W/m2.K] | AM14: Schluff/Ton | AN14: 1.5
J15: Tiefe z = | K15: 0.30 | L15: [m] | AM15: Kies/Sand | AN15: 2
C16: Reduktionsfaktor bGW = | K16: =bGW -> 0.87 | W16: U-Wert Bodenplatte = | X16: 3.00 | Y16: [W/m2.K] | AM16: Fels | AN16: 3.5
AN17: =VLOOKUP(I25,AM14:AN16,2,FALSE) -> 2
I18: UK Bodenplatte
L20: =IF(AND(Ds>0,Dh>0),AP24,"") ->  | Z20: =IF(AND(Ds>0,Dh>0),AP24,"") -> 
J21: Höhe D = | K21: 0.00 | L21: [m] | W21: Breite D = | Y21: [m]
AM22: Rn | AN22: =IF(OR(dn=0,ln=0),0,dn/ln) -> 2.5
K23: . | AM23: R_ | AN23: =IF(OR(dn=0,ln=0),0,Rn-(dn/l)) -> 2.45
W24: Dämmdicke dn = | X24: 0.10 | Y24: [m] | AP24: Beide Werte nicht möglich
C25: Erdreich = | I25: Kies/Sand | W25: Wärmeleitfähigkeit ln = | X25: 0.040 | Y25: [W/m.K] | AM25: Uo1 | AN25: =IF(OR(dt="",B_=""),0,(2*l/(PI()*B_+dt+0.5*tz))*LN(PI()*B_/(dt+0.5*tz)+1)) -> 0.271 | AP25: Länge a = | AQ25: Länge b =
AM26: Uo2 | AN26: =IF(OR(dt="",B_=""),0,l/(0.457*B_+dt+0.5*tz)) -> 0.215 | AP26: Länge a = | AQ26: Länge b =
C27: =INDEX(AP25:AP27,AP10) -> Länge a = | K27: 60 | L27: [m] | W27: Fläche A = | X27: =INDEX(AN7:AN9,AP10) -> 1500 | Y27: [m2] | AM27: (dt+0,5z)<B' | AN27: =IF(dt="",0,IF((dt+0.5*tz)<B_,_Uo1,_Uo2)) -> 0.271 | AP27: Fläche A = | AQ27: Perimeterumfang P =
C28: =INDEX(AQ25:AQ27,AP10) -> Länge b = | K28: 25 | L28: [m] | W28: Perimeterumfang P = | X28: =INDEX(AO7:AO9,AP10) -> 170 | Y28: [m]
W30: Reduktionsfaktor bGF = | X30: =bGF -> 0.09
AM31: DYw | AN31: =IF(OR(dt="",d_=""),0,-l/PI()*(LN(Dh/dt+1)-LN(Dh/(dt+d_)+1))) -> 0
AM32: DYs | AN32: =IF(AND(dt="",d_=""),0,-l/PI()*(LN(2*Ds/dt+1)-LN(2*Ds/(dt+d_)+1))) -> 0
C33: Resultate Bodenplatte | AM33: dw | AN33: =IF(OR(Uw=0,tz=0),0,l/Uw) -> 10
C34: Charakteristisches Bodenplattenmass | W34: B' = | X34: =IF(A=0,"",IF(P=0,"",2*A/P)) -> 17.65 | Y34: [m] | AM34: Ubw | AN34: =IF(tz=0,Uw,((2*l/(PI()*tz))*(1+0.5*dt/(dt+tz))*LN(tz/dw+1))) -> 0.1744081176
C35: Wirksame Gesamtdicke der Bodenplatte | W35: dt = | X35: =IF(OR(_Uf2="",w=0),"",w+l*1/_Uf2) -> 1.07 | Y35: [m]
C36: Zusätzliche wirksame Dicke der Randdämmung | W36: d' = | X36: =IF(dt="","",R_*l) -> 4.90 | Y36: [m]
C37: Wärmedurchlasskoeffizient Bodenplatte | W37: Uf = | X37: =IF(X16=0,"",X16) -> 3.00 | Y37: [W/m2.K]
C38: Korrekturwert bei Randdämmung | W38: DY = | X38: =IF(OR(Z20=AP24,dt="",B_=""),"",MIN(DYw,DYs)) -> 0.000 | Y38: [W/m.K]
C39: Wirksamer Wärmedurchlasskoeffizient ohne Randdämmung | W39: Uo = | X39: =IF(Uo=0,"",Uo) -> 0.27 | Y39: [W/m2.K]
C40: Wirksamer Wärmedurchlasskoeffizient mit Randdämmung | W40: UbF = | X40: =IF(OR(Z20=AP24,dt="",B_=""),"",Uo+2*DY/B_) -> 0.27 | Y40: [W/m2.K]
C41: Reduktionsfaktor Bodenplatte | W41: bGF = | X41: =IF(OR(Z20=AP24,dt="",B_=""),"",UbF/_Uf2) -> 0.09 | Y41: [-]
C43: Resultate Kellerwand
C44: Wirksame Gesamtdicke der Kellerwände | W44: dw = | X44: =IF(dw=0,"--",dw) -> 10.00 | Y44: [m]
C45: Wärmedurchlasskoeffizient der Kellerwand | W45: Uw = | X45: =IF(Uw=0,"",Uw) -> 0.20 | Y45: [W/m2.K]
C46: Wirksamer Wärmedurchlasskoeffizient der Kellerwand | W46: UbW = | X46: =IF(Ubw=0,"",Ubw) -> 0.17 | Y46: [W/m2.K]
C47: Reduktionsfaktor Kellerwand | W47: bGW = | X47: =IF(tz=0,"",IF(OR(dw=0,tz=0),"",Ubw/Uw)) -> 0.87 | Y47: [-]
C49: Achtung! Die U-Werte von Wand und Bodenplatte werden mit Rse = 0,04 [m2.K/W] berechnet.
C51: Bemerkungen:
C57: ©Wolfgang Maurer, Dpl-Ing. HTL, Brühlstrase 103, 9320 Arbon | AA57: gedruckt: | AB57: =NOW() -> 2025-02-18T15:30:07.640

Sheet Hilfe
C3: Bestimmen des charakteristischen Bodenplattenmasses B'
C5: Typ A: Vollständiges Gebäude
Z8: Allseitig Erdreich oder unbeheizt
Z10: A = a*b
N12: beheizt | X12: b | Z12: P = 2*(a+b)
Z14: Eventuelle Randdämmung
M17: a
C19: Typ B: Beheizter Gebäudeteil
N24: beheiztes Nebengebäude
Z30: A = a*b
N32: beheizt | Z32: P = a + 2b
X33: b
Z34: Eventuelle Randdämmung
N37: a
C39: Typ C: Unbeheizter Gebäudeteil (Beispiel)
I44: unbeheiztes Nebengebäude
Z50: A = berechnen
Z52: P = berechnen
N53: beheizt
X54: b | Z54: Der unbeheizte Gebäudeteil wird wie Erdreich behandelt
Z57: Eventuelle Randdämmung
M59: a
